fUSD/lending_fUSD_20241121
["ID","MTS","AMOUNT","RATE_DAILY","PERIOD"]
[342909080,1732201847324,-500.0,0.00041095,18]
[342909081,1732201847337,-500.0,0.00041095,18]
[342909082,1732201847347,-500.0,0.00041095,18]
[342909083,1732201847358,-500.0,0.00041095,18]
[342909084,1732201847369,-500.0,0.00041095,18]
[342909085,1732201847379,-500.0,0.00041095,18]
[342909086,1732201847390,-500.0,0.00041095,18]
[342909087,1732201847401,-500.0,0.00041095,18]
[342909088,1732201847414,-500.0,0.00041095,18]
[342909089,1732201847424,-500.0,0.00041095,18]
[342909090,1732201847434,-500.0,0.00041095,18]
[342909091,1732201847446,-500.0,0.00041095,18]
[342909092,1732201847456,-500.0,0.00041095,18]
[342909093,1732201847468,-500.0,0.00041095,18]
[342909094,1732201847478,-500.0,0.00041095,18]
[342909095,1732201847488,-1459.48,0.00041095,18]
[342909096,1732201847498,-523.91,0.00041095,18]
[342909097,1732201847507,-500.0,0.00041095,18]
[342909098,1732201847516,-500.0,0.00041095,18]
[342909099,1732201847526,-500.0,0.00041095,18]
[342909100,1732201847536,-500.0,0.00041095,18]
[342909101,1732201847545,-500.0,0.00041095,18]
[342909102,1732201847555,-1978.28,0.00041095,18]
[342909103,1732201847564,-500.0,0.00041095,18]
[342909104,1732201847573,-500.0,0.00041095,18]
[342909105,1732201847583,-1121.69,0.00041095,18]
[342909106,1732201847592,-500.0,0.00041095,18]
[342909107,1732201847601,-1678.27,0.00041095,18]
[342909108,1732201847611,-500.0,0.00041095,18]
[342909109,1732201847620,-500.0,0.00041095,18]
[342909110,1732201847629,-500.0,0.00041095,18]
[342909111,1732201847639,-500.0,0.00041095,18]
[342909112,1732201847649,-500.0,0.00041095,18]
[342909113,1732201847659,-500.0,0.00041095,18]
[342909114,1732201847668,-500.0,0.00041095,18]
[342909115,1732201847678,-546.5,0.00041095,18]
[342909116,1732201847688,-500.0,0.00041095,18]
[342909117,1732201847698,-500.0,0.00041095,18]
[342909118,1732201847710,-863.8,0.00041095,18]
[342909119,1732201847719,-500.0,0.00041095,18]
[342909120,1732201847730,-500.0,0.00041095,18]
[342909121,1732201847741,-2349.65,0.00041095,18]
[342909122,1732201847751,-500.0,0.00041095,18]
[342909123,1732201847761,-986.0,0.00041095,18]
[342909124,1732201847771,-151.0,0.00041095,14]
[342909125,1732201847780,-1566.2,0.00041095,18]
[342909126,1732201847790,-500.0,0.00041095,18]
[342909127,1732201847800,-1722.79,0.00041095,18]
[342909128,1732201847810,-2776.29,0.00041095,18]
[342909129,1732201847819,-500.0,0.00041095,18]
[342909130,1732201847829,-500.0,0.00041095,18]
[342909131,1732201847838,-690.99,0.00041095,18]
[342909132,1732201847847,-151.0,0.00041095,14]
[342909133,1732201847857,-1165.14,0.00041095,18]
[342909134,1732201847867,-1722.78,0.00041095,18]
[342909135,1732201847877,-500.0,0.00041095,18]
[342909136,1732201847886,-500.0,0.00041095,18]
[342909137,1732201847895,-500.0,0.00041095,18]
[342909138,1732201847905,-500.0,0.00041095,18]
[342909139,1732201847914,-244.618151,0.00041095,14]
[342909140,1732201847923,-500.0,0.00041095,18]
[342909141,1732201847932,-1780.93,0.00041095,18]
[342909142,1732201847942,-500.0,0.00041095,18]
[342909143,1732201847951,-500.0,0.00041095,18]
[342909144,1732201847962,-835.49,0.00041095,18]
[342909145,1732201847971,-610.01,0.00041095,18]
[342909146,1732201847981,-1303.49,0.00041095,18]
[342909147,1732201847990,-500.0,0.00041095,18]
[342909148,1732201847999,-2700.73,0.00041095,18]
[342909149,1732201848009,-1500.0,0.00041095,120]
[342909150,1732201848018,-500.0,0.00041095,18]
[342909151,1732201848029,-500.0,0.00041095,18]
[342909152,1732201848038,-500.0,0.00041095,18]
[342909153,1732201848048,-11498.09,0.00041095,18]
[342909154,1732201848057,-500.0,0.00041095,120]
[342909155,1732201848067,-1729.21,0.00041095,18]
[342909156,1732201848076,-861.96,0.00041095,18]
[342909157,1732201848086,-500.0,0.00041095,18]
[342909158,1732201848096,-500.0,0.00041095,18]
[342909159,1732201848105,-500.0,0.00041095,18]
[342909160,1732201848115,-1172.16,0.00041095,18]
[342909161,1732201848124,-519.05,0.00041095,18]
[342909162,1732201848134,-500.0,0.00041095,18]
[342909163,1732201848144,-1025.62,0.00041095,18]
[342909164,1732201848153,-1058.74,0.00041095,18]
[342909165,1732201848162,-541.65,0.00041095,18]
[342909166,1732201848172,-683.87,0.00041095,18]
[342909167,1732201848181,-500.0,0.00041095,18]
[342909168,1732201848191,-928.03,0.00041095,18]
[342909169,1732201848200,-500.0,0.00041095,18]
[342909170,1732201848211,-500.0,0.00041095,18]
[342909171,1732201848221,-512.0641845,0.00041095,18]
[342909172,1732201848231,-500.0,0.00041095,18]
[342909173,1732201848240,-951.7,0.00041095,18]
[342909174,1732201848250,-668.8,0.00041095,18]
[342909175,1732201848259,-500.0,0.00041095,18]
[342909176,1732201848269,-500.0,0.00041095,18]
[342909177,1732201848278,-823.96,0.00041095,18]
[342909178,1732201848288,-1082.42,0.00041095,18]
[342909179,1732201848297,-825.33,0.00041095,18]
[342909180,1732201848306,-500.0,0.00041095,18]
[342909181,1732201848316,-629.05,0.00041095,18]
[342909182,1732201848325,-500.0,0.00041095,18]
[342909183,1732201848334,-500.0,0.00041095,18]
[342909184,1732201848343,-500.0,0.00041095,18]
[342909185,1732201848354,-500.0,0.00041095,18]
[342909186,1732201848363,-500.0,0.00041095,18]
[342909187,1732201848372,-500.0,0.00041095,18]
[342909188,1732201848381,-657.33,0.00041095,18]
[342909189,1732201848390,-1740.5,0.00041095,18]
[342909190,1732201848401,-874.46,0.00041095,18]
[342909191,1732201848414,-500.0,0.00041095,18]
[342909192,1732201848424,-500.0,0.00041095,18]
[342909193,1732201848433,-500.0,0.00041095,18]
[342909194,1732201848443,-608.23,0.00041095,18]
[342909195,1732201848455,-500.0,0.00041095,18]
[342909196,1732201848470,-500.0,0.00041095,18]
[342909197,1732201848481,-1777.16,0.00041095,18]
[342909198,1732201848491,-928.63,0.00041095,18]
[342909199,1732201848501,-500.0,0.00041095,18]
[342909200,1732201848511,-506.78,0.00041095,18]
[342909201,1732201848521,-500.0,0.00041095,18]
[342909202,1732201848531,-1223.63,0.00041095,18]
[342909203,1732201848543,-1592.03,0.00041095,18]
[342909204,1732201848553,-894.45,0.00041095,18]
[342909205,1732201848563,-500.0,0.00041095,18]
[342909206,1732201848572,-500.0,0.00041095,18]
[342909207,1732201848582,-500.0,0.00041095,18]
[342909208,1732201848591,-500.0,0.00041095,18]
[342909209,1732201848601,-1338.87,0.00041095,18]
[342909210,1732201848611,-500.0,0.00041095,18]
[342909211,1732201848620,-500.0,0.00041095,18]
[342909212,1732201848630,-1025.29,0.00041095,18]
[342909213,1732201848640,-957.89,0.00041095,18]
[342909214,1732201848650,-500.0,0.00041095,18]
[342909215,1732201848659,-1129.34,0.00041095,18]
[342909216,1732201848669,-1490.79,0.00041095,18]
[342909217,1732201848679,-617.41,0.00041095,18]
[342909218,1732201848688,-500.0,0.00041095,18]
[342909219,1732201848698,-500.0,0.00041095,18]
[342909220,1732201848707,-500.0,0.00041095,18]
[342909221,1732201848717,-565.43,0.00041095,18]
[342909222,1732201848727,-500.0,0.00041095,18]
[342909223,1732201848736,-500.0,0.00041095,18]
[342909224,1732201848745,-500.0,0.00041095,18]
[342909225,1732201848756,-3596.6,0.00041095,18]
[342909226,1732201848765,-1421.11,0.00041095,18]
[342909227,1732201848775,-500.0,0.00041095,18]
[342909228,1732201848784,-693.1,0.00041095,18]
[342909229,1732201848794,-500.0,0.00041095,120]
[342909230,1732201848803,-500.0,0.00041095,120]
[342909231,1732201848812,-500.0,0.00041095,18]
[342909232,1732201848822,-500.0,0.00041095,18]
[342909233,1732201848832,-500.0,0.00041095,18]
[342909234,1732201848841,-500.0,0.00041095,18]
[342909235,1732201848850,-587.89,0.00041095,18]
[342909236,1732201848860,-4483.53,0.00041095,18]
[342909237,1732201848870,-762.67,0.00041095,18]
[342909238,1732201848879,-817.89,0.00041095,18]
[342909239,1732201848888,-500.0,0.00041095,18]
[342909240,1732201848898,-500.0,0.00041095,18]
[342909241,1732201848912,-500.0,0.00041095,18]
[342909242,1732201848921,-500.0,0.00041095,7]
[342909243,1732201848931,-500.0,0.00041095,18]
[342909244,1732201848940,-500.0,0.00041095,18]
[342909245,1732201848950,-566.23,0.00041095,18]
[342909246,1732201848962,-500.0,0.00041095,18]
[342909247,1732201848972,-500.0,0.00041095,18]
[342909248,1732201848982,-1734.67,0.00041095,18]
[342909249,1732201848992,-4017.93,0.00041095,18]
[342909250,1732201849002,-500.0,0.00041095,18]
[342909251,1732201849011,-500.0,0.00041095,18]
[342909252,1732201849021,-531.6,0.00041095,18]
[342909253,1732201849031,-500.0,0.00041095,18]
[342909254,1732201849041,-2849.71,0.00041095,18]
[342909255,1732201849051,-672.18,0.00041095,18]
[342909256,1732201849061,-500.0,0.00041095,18]
[342909257,1732201849072,-500.0,0.00041095,18]
[342909258,1732201849082,-614.48,0.00041095,18]
[342909259,1732201849092,-788.11,0.00041095,18]
[342909260,1732201849101,-943.48,0.00041095,18]
[342909261,1732201849112,-694.41,0.00041095,18]
[342909262,1732201849122,-682.86,0.00041095,18]
[342909263,1732201849131,-500.0,0.00041095,18]
[342909264,1732201849141,-2057.09,0.00041095,18]
[342909265,1732201849151,-1029.52,0.00041095,18]
[342909266,1732201849162,-1438.24,0.00041095,18]
[342909267,1732201849171,-1303.96,0.00041095,18]
[342909268,1732201849180,-500.0,0.00041095,18]
[342909269,1732201849190,-3504.96,0.00041095,18]
[342909270,1732201849199,-1138.59,0.00041095,18]
[342909271,1732201849211,-880.15,0.00041095,18]
[342909272,1732201849226,-500.0,0.00041095,18]
[342909273,1732201849235,-500.0,0.00041095,18]
[342909274,1732201849245,-500.0,0.00041095,18]
[342909275,1732201849254,-500.0,0.00041095,18]
[342909276,1732201849264,-500.0,0.00041095,18]
[342909277,1732201849274,-2522.41,0.00041095,18]
[342909278,1732201849284,-500.0,0.00041095,18]
[342909279,1732201849294,-500.0,0.00041095,18]
[342909280,1732201849304,-968.04,0.00041095,18]
[342909281,1732201849314,-564.65,0.00041095,18]
[342909282,1732201849323,-1317.13,0.00041095,18]
[342909283,1732201849333,-675.4,0.00041095,18]
[342909284,1732201849343,-500.0,0.00041095,18]
[342909285,1732201849352,-505.37017149,0.00041095,18]
[342909286,1732201849362,-500.0,0.00041095,18]
[342909287,1732201849372,-5227.92,0.00041095,18]
[342909288,1732201849382,-500.0,0.00041095,18]
[342909289,1732201849391,-1103.77,0.00041095,18]
[342909290,1732201849401,-1424.23,0.00041095,18]
[342909291,1732201849414,-500.0,0.00041095,18]
[342909292,1732201849424,-729.11,0.00041095,7]
[342909293,1732201849434,-500.0,0.00041095,18]
[342909294,1732201849443,-500.0,0.00041095,2]
[342909295,1732201849457,-300.0,0.00041096,2]
[342909296,1732201849470,-150.0,0.00041096,2]
[342909297,1732201849480,-150.0,0.00041096,2]
[342909298,1732201849492,-150.0,0.00041096,2]
[342909299,1732201849501,-150.0,0.00041096,2]
[342909300,1732201849512,-5100.0,0.000412,27]
[342909301,1732201849522,-1255.0,0.00041265,120]
[342909302,1732201849532,-500.0,0.00041267,18]
[342909303,1732201849542,-577.45916343,0.00041268,18]
[342909304,1732201849551,-2682.9,0.00041315,120]
[342909305,1732201849562,-967.73,0.00041315,120]
[342909306,1732201849572,-500.0,0.00041368,18]
[342909307,1732201849582,-500.0,0.00041368,18]
[342909308,1732201849592,-500.0,0.00041369,18]
[342909309,1732201849602,-500.0,0.00041369,18]
[342909310,1732201849612,-500.0,0.00041369,18]
[342909311,1732201849621,-500.0,0.00041369,18]
[342909312,1732201849631,-500.0,0.00041369,18]
[342909313,1732201849641,-500.0,0.00041369,18]
[342909314,1732201849651,-500.0,0.00041369,18]
[342909315,1732201849661,-560.45,0.00041369,18]
[342909316,1732201849671,-500.0,0.00041369,18]
[342909317,1732201849681,-500.0,0.00041369,18]
[342909318,1732201849691,-500.0,0.00041369,18]
[342909319,1732201849701,-500.0,0.00041369,18]
[342909320,1732201849713,-500.0,0.00041369,18]
[342909321,1732201849723,-500.0,0.00041369,18]
[342909322,1732201849735,-500.0,0.00041369,18]
[342909323,1732201849745,-500.0,0.00041369,18]
[342909324,1732201849755,-500.0,0.00041369,18]
[342909325,1732201849765,-500.0,0.00041369,18]
[342909326,1732201849775,-942.74,0.00041369,18]
[342909327,1732201849786,-539.03,0.00041369,18]
[342909328,1732201849796,-500.0,0.00041369,18]
[342909329,1732201849806,-500.0,0.00041369,18]
[342909330,1732201849816,-500.0,0.00041369,18]
[342909331,1732201849827,-500.0,0.00041369,18]
[342909332,1732201849837,-500.0,0.00041369,18]
[342909333,1732201849847,-500.0,0.00041369,18]
[342909334,1732201849861,-500.0,0.00041369,18]
[342909335,1732201849874,-500.0,0.00041369,18]
[342909336,1732201849884,-500.0,0.00041369,18]
[342909337,1732201849895,-500.0,0.00041369,18]
[342909338,1732201849904,-500.0,0.00041369,18]
[342909339,1732201849913,-500.0,0.00041369,18]
[342909340,1732201849923,-500.0,0.00041369,18]
[342909341,1732201849932,-550.88,0.00041369,18]
[342909342,1732201849943,-516.4,0.00041369,18]
[342909343,1732201849952,-500.0,0.00041369,18]
[342909344,1732201849964,-500.0,0.00041369,18]
[342909345,1732201849975,-573.61,0.00041369,18]
[342909346,1732201849985,-500.0,0.00041369,18]
[342909347,1732201849994,-500.0,0.00041369,18]
[342909348,1732201850004,-714.0,0.00041369,18]
[342909349,1732201850014,-500.0,0.00041369,18]
[342909350,1732201850023,-500.0,0.00041369,18]
[342909351,1732201850032,-500.0,0.00041369,18]
[342909352,1732201850042,-500.0,0.00041369,18]
[342909353,1732201850051,-756.47,0.00041369,18]
[342909354,1732201850061,-500.0,0.00041369,18]
[342909355,1732201850072,-500.0,0.00041369,18]
[342909356,1732201850082,-500.0,0.00041369,18]
[342909357,1732201850091,-500.0,0.00041369,18]
[342909358,1732201850101,-500.0,0.00041369,18]
[342909359,1732201850110,-500.0,0.00041369,18]
[342909360,1732201850120,-500.0,0.00041369,18]
[342909361,1732201850129,-500.0,0.00041369,18]
[342909362,1732201850139,-500.0,0.00041369,18]
[342909363,1732201850149,-500.0,0.00041369,18]
[342909364,1732201850159,-500.0,0.00041369,18]
[342909365,1732201850168,-500.0,0.00041369,18]
[342909366,1732201850178,-500.0,0.00041369,18]
[342909367,1732201850188,-500.0,0.00041369,18]
[342909368,1732201850197,-500.0,0.00041369,18]
[342909369,1732201850206,-500.0,0.00041369,18]
[342909370,1732201850219,-500.0,0.00041369,18]
[342909371,1732201850229,-500.0,0.00041369,18]
[342909372,1732201850238,-500.0,0.00041369,18]
[342909373,1732201850248,-620.57,0.00041369,18]
[342909374,1732201850257,-500.0,0.00041369,18]
[342909375,1732201850267,-152.76549431,0.00041369,18]
[342909376,1732201850276,-500.0,0.00041369,18]
[342909377,1732201850286,-595.3,0.00041369,18]
[342909378,1732201850296,-500.0,0.00041369,18]
[342909379,1732201850306,-500.0,0.00041369,18]
[342909380,1732201850316,-500.0,0.00041369,18]
[342909381,1732201850326,-500.0,0.00041369,18]
[342909382,1732201850336,-500.0,0.00041369,18]
[342909383,1732201850346,-329.7869763,0.00041369,18]
[342909384,1732201850355,-500.0,0.00041369,18]
[342909385,1732201850365,-500.0,0.00041369,18]
[342909386,1732201850375,-500.0,0.00041369,18]
[342909387,1732201850386,-500.0,0.00041369,18]
[342909388,1732201850397,-500.0,0.00041369,18]
[342909389,1732201850412,-500.0,0.00041369,18]
[342909390,1732201850422,-500.0,0.00041369,18]
[342909391,1732201850433,-500.0,0.00041369,18]
[342909392,1732201850444,-500.0,0.00041369,18]
[342909393,1732201850457,-500.0,0.00041369,18]
[342909394,1732201850475,-500.0,0.00041369,18]
[342909395,1732201850488,-500.0,0.00041369,18]
[342909396,1732201850501,-857.82,0.00041369,18]
[342909397,1732201850512,-500.0,0.00041369,18]
[342909398,1732201850523,-939.45,0.00041369,18]
[342909399,1732201850535,-500.0,0.00041369,18]
[342909400,1732201850546,-539.73,0.00041369,18]
[342909401,1732201850556,-500.0,0.00041369,18]
[342909402,1732201850568,-500.0,0.00041369,18]
[342909403,1732201850579,-500.0,0.00041369,18]
[342909404,1732201850595,-500.0,0.00041369,18]
[342909405,1732201850607,-500.0,0.00041369,18]
[342909406,1732201850619,-500.0,0.00041369,18]
[342909407,1732201850630,-500.0,0.00041369,18]
[342909408,1732201850640,-882.51,0.00041369,18]
[342909409,1732201850652,-519.85,0.00041369,18]
[342909410,1732201850663,-500.0,0.00041369,18]
[342909411,1732201850673,-924.17,0.00041369,18]
[342909412,1732201850684,-608.55,0.00041369,18]
[342909413,1732201850698,-500.0,0.00041369,18]
[342909414,1732201850709,-500.0,0.00041369,18]
[342909415,1732201850731,-578.68,0.00041369,18]
[342909416,1732201850742,-536.54,0.00041369,18]
[342909417,1732201850753,-712.5,0.00041369,18]
[342909418,1732201850764,-500.0,0.00041369,18]
[342909419,1732201850775,-500.0,0.00041369,18]
[342909420,1732201850786,-500.0,0.00041369,18]
[342909421,1732201850802,-1272.66,0.00041369,18]
[342909422,1732201850813,-500.0,0.00041369,18]
[342909423,1732201850825,-500.0,0.00041369,18]
[342909424,1732201850837,-1194.13,0.00041369,18]
[342909425,1732201850847,-500.0,0.00041369,18]
[342909426,1732201850858,-500.0,0.00041369,18]
[342909427,1732201850869,-500.0,0.00041369,18]
[342909428,1732201850879,-500.0,0.00041369,18]
[342909429,1732201850890,-500.0,0.00041369,18]
[342909430,1732201850904,-1250.23,0.00041369,18]
[342909431,1732201850914,-707.18,0.00041369,18]
[342909432,1732201850924,-724.55,0.00041369,18]
[342909433,1732201850935,-733.75,0.00041369,18]
[342909434,1732201850945,-500.0,0.00041369,18]
[342909435,1732201850954,-553.84,0.00041369,18]
[342909436,1732201850969,-500.0,0.00041369,18]
[342909437,1732201850979,-500.0,0.00041369,18]
[342909438,1732201850989,-533.35,0.00041369,18]
[342909439,1732201850999,-500.0,0.00041369,18]
[342909440,1732201851010,-500.0,0.00041369,18]
[342909441,1732201851020,-500.0,0.00041369,18]
[342909442,1732201851030,-500.0,0.00041369,18]
[342909443,1732201851040,-500.0,0.00041369,18]
[342909444,1732201851050,-777.4,0.00041369,18]
[342909445,1732201851064,-1000.0,0.00041369,18]
[342909446,1732201851074,-390.10991694,0.00041369,18]
[342909447,1732201851084,-515.15,0.00041369,18]
[342909448,1732201851094,-500.0,0.00041369,18]
[342909449,1732201851104,-500.0,0.00041369,18]
[342909450,1732201851114,-500.0,0.00041369,18]
[342909451,1732201851123,-500.0,0.00041369,18]
[342909452,1732201851133,-456.05994497,0.00041369,18]
[342909453,1732201851143,-500.0,0.00041369,18]
[342909454,1732201851152,-500.0,0.00041369,18]
[342909455,1732201851162,-614.61,0.00041369,18]
[342909456,1732201851171,-500.0,0.00041369,18]
[342909457,1732201851181,-151.0,0.00041369,14]
[342909458,1732201851191,-500.0,0.00041369,18]
[342909459,1732201851200,-500.0,0.00041369,18]
[342909460,1732201851210,-500.0,0.00041369,18]
[342909461,1732201851224,-934.39,0.00041369,18]
[342909462,1732201851233,-937.55,0.00041369,18]
[342909463,1732201851391,-500.0,0.00041369,18]
[342909464,1732201851401,-683.91,0.00041369,18]
[342909465,1732201851415,-500.0,0.00041369,18]
[342909466,1732201851424,-500.0,0.00041369,18]
[342909467,1732201851433,-631.46,0.00041369,18]
[342909468,1732201851443,-643.89,0.00041369,18]
[342909469,1732201851454,-524.11,0.00041369,18]
[342909470,1732201851467,-500.0,0.00041369,18]
[342909471,1732201851478,-500.0,0.00041369,18]
[342909472,1732201851488,-151.0,0.00041369,14]
[342909473,1732201851499,-500.0,0.00041369,18]
[342909474,1732201851508,-640.72,0.00041369,18]
[342909475,1732201851518,-850.77,0.00041369,18]
[342909476,1732201851527,-500.0,0.00041369,7]
[342909477,1732201851536,-500.0,0.00041369,18]
[342909478,1732201851546,-500.0,0.00041369,18]
[342909479,1732201851556,-500.0,0.00041369,18]
[342909480,1732201851566,-500.0,0.00041369,18]
[342909481,1732201851576,-500.0,0.00041369,18]
[342909482,1732201851586,-500.0,0.00041369,18]
[342909483,1732201851596,-500.0,0.00041369,18]
[342909484,1732201851605,-500.0,0.00041369,18]
[342909485,1732201851615,-640.26,0.00041369,18]
[342909486,1732201851624,-500.0,0.00041369,18]
[342909487,1732201851633,-801.49,0.00041369,18]
[342909488,1732201851642,-151.0,0.00041369,14]
[342909489,1732201851652,-660.28,0.00041369,18]
[342909490,1732201851661,-500.0,0.00041369,18]
[342909491,1732201851675,-792.34,0.00041369,18]
[342909492,1732201851684,-685.17,0.00041369,60]
[342909493,1732201851694,-500.0,0.00041369,18]
[342909494,1732201851703,-500.0,0.00041369,18]
[342909495,1732201851716,-500.0,0.00041369,18]
[342909496,1732201851725,-500.0,0.00041369,18]
[342909497,1732201851734,-500.0,0.00041369,18]
[342909498,1732201851743,-542.71,0.00041369,18]
[342909499,1732201851753,-500.0,0.00041369,18]
[342909500,1732201851762,-500.0,0.00041369,18]
[342909501,1732201851772,-957.27,0.00041369,18]
[342909502,1732201851781,-622.32,0.00041369,18]
[342909503,1732201851791,-500.0,0.00041369,18]
[342909504,1732201851800,-500.0,0.00041369,18]
[342909505,1732201851810,-864.55,0.00041369,18]
[342909506,1732201851820,-500.0,0.00041369,18]
[342909507,1732201851830,-500.0,0.00041369,18]
[342909508,1732201851840,-500.0,0.00041369,18]
[342909509,1732201851849,-973.3,0.00041369,18]
[342909510,1732201851859,-500.0,0.00041369,18]
[342909511,1732201851869,-500.0,0.00041369,18]
[342909512,1732201851879,-588.97677041,0.00041369,18]
[342909513,1732201851889,-304.99199245,0.00041369,18]
[342909514,1732201851899,-500.0,0.00041369,18]
[342909515,1732201851908,-500.0,0.00041369,18]
[342909516,1732201851918,-500.0,0.00041369,18]
[342909517,1732201851928,-500.0,0.00041369,18]
[342909518,1732201851937,-500.0,0.00041369,18]
[342909519,1732201851946,-500.0,0.00041369,18]
[342909520,1732201851957,-500.0,0.00041369,18]
[342909521,1732201851970,-500.0,0.00041369,18]
[342909522,1732201851981,-500.0,0.00041369,18]
[342909523,1732201851991,-345.25143754,0.00041369,18]
[342909524,1732201852001,-911.18,0.00041369,18]
[342909525,1732201852012,-675.39,0.00041369,18]
[342909526,1732201852023,-908.71,0.00041369,18]
[342909527,1732201852034,-500.0,0.00041369,18]
[342909528,1732201852044,-500.0,0.00041369,18]
[342909529,1732201852055,-906.19,0.00041369,18]
[342909530,1732201852065,-500.0,0.00041369,18]
[342909531,1732201852074,-500.0,0.00041369,18]
[342909532,1732201852084,-500.0,0.00041369,18]
[342909533,1732201852094,-500.0,0.00041369,18]
[342909534,1732201852104,-528.4,0.00041369,18]
[342909535,1732201852114,-500.0,0.00041369,18]
[342909536,1732201852124,-514.21,0.00041369,18]
[342909537,1732201852133,-500.0,0.00041369,18]
[342909538,1732201852143,-532.67,0.00041369,18]
[342909539,1732201852153,-501.32,0.00041369,18]
[342909540,1732201852163,-500.0,0.00041369,18]
[342909541,1732201852172,-500.0,0.00041369,18]
[342909542,1732201852182,-1135.76,0.00041369,18]
[342909543,1732201852191,-313.34024758,0.00041369,18]
[342909544,1732201852201,-500.0,0.00041369,18]
[342909545,1732201852210,-630.18,0.00041369,18]
[342909546,1732201852225,-606.79,0.00041369,18]
[342909547,1732201852234,-500.0,0.00041369,18]
[342909548,1732201852243,-881.68,0.00041369,18]
[342909549,1732201852253,-500.0,0.00041369,18]
[342909550,1732201852263,-500.0,0.00041369,18]
[342909551,1732201852273,-500.0,0.00041369,18]
[342909552,1732201852283,-730.01,0.00041369,18]
[342909553,1732201852293,-500.0,0.00041369,18]
[342909554,1732201852302,-243.93932331,0.00041369,7]
[342909555,1732201852312,-500.0,0.00041369,18]
[342909556,1732201852322,-500.0,0.00041369,18]
[342909557,1732201852331,-500.0,0.00041369,18]
[342909558,1732201852341,-500.0,0.00041369,18]
[342909559,1732201852351,-640.65,0.00041369,18]
[342909560,1732201852360,-500.0,0.00041369,18]
[342909561,1732201852370,-562.63,0.00041369,18]
[342909562,1732201852379,-500.0,0.00041369,18]
[342909563,1732201852389,-500.0,0.00041369,18]
[342909564,1732201852399,-277.433892,0.00041369,14]
[342909565,1732201852413,-558.48,0.00041369,18]
[342909566,1732201852423,-500.0,0.00041369,18]
[342909567,1732201852432,-703.5,0.00041369,18]
[342909568,1732201852442,-500.0,0.00041369,18]
[342909569,1732201852454,-500.0,0.00041369,18]
[342909570,1732201852468,-500.0,0.00041369,18]
[342909571,1732201852478,-472.20184938,0.00041369,18]
[342909572,1732201852488,-500.0,0.00041369,18]
[342909573,1732201852498,-1146.51,0.00041369,18]
[342909574,1732201852507,-561.76,0.00041369,18]
[342909575,1732201852516,-500.0,0.00041369,18]
[342909576,1732201852525,-500.0,0.00041369,18]
[342909577,1732201852535,-500.0,0.00041369,18]
[342909578,1732201852544,-500.0,0.00041369,18]
[342909579,1732201852554,-707.74,0.00041369,18]